bitfinex-derivatives/quotes_SOLF0:USTF0_20260104
["timestamp","ask_amount","ask_price","bid_price","bid_amount"]
[1767512680291,5.4423225,134.14,134.12,0.05285995]
[1767512680491,6.7114,134.16,134.12,0.05285995]
[1767512680692,5.44193444,134.15,134.12,0.05285995]
[1767512680885,6.7114,134.16,134.12,0.05285995]
[1767512680886,5.44193444,134.14,134.12,0.05285995]
[1767512681085,6.7108,134.18,134.12,1.75449488]
[1767512681293,5.44174492,134.17,134.12,2.52349622]
[1767512681600,6.7108,134.18,134.12,1.75449488]
[1767512681798,5.43893393,134.17,134.12,1.75449488]
[1767512682097,6.7108,134.18,134.12,1.75449488]
[1767512682398,0.76900134,134.2,134.12,1.75449488]
[1767512682695,5.43686279,134.19,134.12,1.75449488]
[1767512682882,5.43686279,134.18,134.12,1.75449488]
[1767512683088,0.76900134,134.2,134.12,1.75449488]
[1767512683288,5.43686363,134.19,134.12,1.75449488]
[1767512683489,5.43686363,134.18,134.12,1.75449488]
[1767512683788,6.71,134.19,134.12,1.75449488]
[1767512684087,5.43487933,134.18,134.12,1.75449488]
[1767512684291,6.71,134.19,134.12,1.75449488]
[1767512684497,5.43346119,134.18,134.12,1.75449488]
[1767512684704,6.71,134.19,134.12,1.75449488]
[1767512684896,5.43346119,134.18,134.12,1.75449488]
[1767512685197,6.71,134.19,134.12,1.75449488]
[1767512685394,5.43346119,134.18,134.12,1.75449488]
[1767512685597,6.71,134.19,134.12,1.75449488]
[1767512685797,5.43226168,134.18,134.12,1.75449488]
[1767512685996,6.71,134.19,134.12,1.75449488]
[1767512686196,5.43226168,134.18,134.12,1.75449488]
[1767512686399,6.71,134.19,134.12,1.75449488]
[1767512686699,5.43123894,134.18,134.12,1.75449488]
[1767512686900,6.71,134.19,134.12,1.75449488]
[1767512687103,5.43123839,134.18,134.12,1.75449488]
[1767512687293,6.71,134.19,134.12,1.75449488]
[1767512687493,5.43037404,134.18,134.12,1.75449488]
[1767512687694,6.71,134.19,134.12,1.75449488]
[1767512687894,5.43037404,134.18,134.12,1.75449488]
[1767512688096,6.71,134.19,134.12,1.75449488]
[1767512692213,0.76900134,134.2,134.12,1.75449488]
[1767512692214,12.13828333,134.18,134.12,1.75449488]
[1767512692402,6.7105,134.18,134.12,1.75449488]
[1767512692803,6.711,134.17,134.12,1.75449488]
[1767512693006,6.711,134.17,134.12,0.05285995]
[1767512693403,6.7115,134.16,134.12,0.05285995]
[1767512693710,7.48050134,134.16,134.1,1.70163493]
[1767512694811,7.48050134,134.16,134.07,1.70163493]
[1767512694812,0.05285995,134.14,134.07,1.70163493]
[1767512695914,0.05285995,134.14,134.09,0.04917353]
[1767512700914,7.53436129,134.14,134.09,0.04917353]
[1767512701510,0.82186129,134.14,134.09,0.04917353]
[1767512702818,7.53446129,134.14,134.09,0.04917353]
[1767512703418,12.14600523,134.13,134.05,113.86501984]
[1767512703618,6.20225164,134.12,134.05,113.86501984]
[1767512703811,0.76900134,134.12,134.05,113.86501984]
[1767512704619,0.05024802,134.1,134.07,0.05129577]
[1767512704917,0.76900134,134.13,134.07,1.70330956]
[1767512707216,7.48120134,134.15,134.08,1.65201379]
[1767512707421,0.04939754,134.11,134.1,0.04758591]
[1767512707615,7.48120134,134.15,134.1,0.04758591]
[1767512707812,5.43140732,134.14,134.1,0.04758591]
[1767512708012,7.48120134,134.15,134.1,0.04758591]
[1767512708213,5.43140732,134.14,134.1,0.04758591]
[1767512708413,7.48120134,134.15,134.1,0.04758591]
[1767512708612,5.43143271,134.14,134.1,0.04758591]
[1767512708812,7.48120134,134.15,134.1,0.04758591]
[1767512709013,5.48492807,134.14,134.1,0.04758591]
[1767512709210,0.05349536,134.14,134.1,0.04758591]
[1767512714828,6.76589536,134.14,134.1,0.04758591]
[1767512715027,0.05349536,134.14,134.1,0.04758591]
[1767512715218,6.20632243,134.13,134.05,19.04851984]
[1767512715416,5.43732109,134.12,134.05,19.04851984]
[1767512715921,5.43732109,134.12,134.05,1.65201379]
[1767512716228,5.43732109,134.12,134.07,0.05395694]
[1767512717028,6.714,134.11,134.07,0.05395694]
[1767512718434,0.05529937,134.1,134.07,0.05395694]
[1767512721031,6.76989937,134.1,134.03,1.65201379]
[1767512722123,6.76989937,134.1,134.05,0.05567412]
[1767512729432,6.7149,134.09,134.05,0.05567412]
[1767512730037,104.50479937,134.1,134.02,1.65201379]
[1767512730336,0.76900134,134.09,134.02,1.65201379]
[1767512731038,0.05404155,134.07,134.04,0.05448034]
[1767512732636,6.7148,134.1,134.04,1.67927519]
[1767512733936,0.05274824,134.08,134.04,1.67927519]
[1767512736032,6.7137,134.12,134.04,1.67927519]
[1767512736341,6.7137,134.12,134.05,1.62479485]
[1767512737141,6.7137,134.12,134.07,0.05211848]
[1767512738246,0.04848283,134.11,134.07,0.05211848]
[1767512739733,6.76238283,134.11,134.07,0.05211848]
[1767512745656,0.04848283,134.11,134.07,1.67691333]
[1767512746265,94.8523,134.15,134.07,1.67691333]
[1767512746460,5.44391064,134.14,134.07,1.67691333]
[1767512746655,94.8523,134.15,134.07,1.67691333]
[1767512746965,5.44365232,134.14,134.07,1.67691333]
[1767512747161,94.8523,134.15,134.07,1.67691333]
[1767512747359,5.44338313,134.14,134.07,1.67691333]
[1767512747561,94.8523,134.15,134.07,1.67691333]
[1767512747761,5.44338313,134.14,134.08,1.62479485]
[1767512748066,94.8523,134.15,134.1,0.05563501]
[1767512748266,5.44317657,134.14,134.1,0.05563501]
[1767512748565,94.8523,134.15,134.1,0.05563501]
[1767512748761,5.4431754,134.14,134.1,0.05563501]
[1767512748961,94.8523,134.15,134.1,0.05563501]
[1767512749166,5.4431754,134.14,134.1,0.05563501]
[1767512749362,94.8523,134.15,134.1,0.05563501]
[1767512749567,5.44269677,134.14,134.1,0.05563501]
[1767512749865,94.8523,134.15,134.1,0.05563501]
[1767512750065,5.44269677,134.14,134.1,0.05563501]
[1767512750265,94.8523,134.15,134.1,0.05563501]
[1767512750465,5.44229681,134.14,134.1,0.05563501]
[1767512750658,94.8523,134.15,134.1,0.05563501]
[1767512750855,5.44229681,134.14,134.1,0.05563501]
[1767512751067,94.8523,134.15,134.1,0.05563501]
[1767512751267,5.44191231,134.14,134.1,0.05563501]
[1767512751461,94.8523,134.15,134.1,0.05563501]
[1767512751663,5.44191231,134.14,134.1,0.05563501]
[1767512751857,94.8523,134.15,134.1,0.05563501]
[1767512752164,5.44191231,134.14,134.1,0.05563501]
[1767512752362,0.05274591,134.14,134.1,0.05563501]
[1767512752977,6.76524591,134.14,134.1,0.05563501]
[1767512756073,0.05274591,134.14,134.1,0.05563501]
[1767512759267,6.76524591,134.14,134.1,0.05563501]
[1767512761773,0.05274591,134.14,134.1,0.05563501]
[1767512777091,0.05274591,134.14,134.1,1.67156981]
[1767512782400,0.05274591,134.14,134.1,8.38586981]
[1767512782592,94.8309,134.17,134.11,1.6159348]
[1767512782593,88.12,134.17,134.11,1.6159348]
[1767512782897,5.44615444,134.16,134.11,1.6159348]
[1767512783089,88.12,134.17,134.11,1.6159348]
[1767512783291,5.44615479,134.16,134.11,8.3297348]
[1767512783489,6.7104,134.18,134.11,8.3297348]
[1767512783691,0.04939515,134.16,134.13,0.04842535]
[1767512786303,0.04939515,134.16,134.13,1.66436015]
[1767512814634,7.47877791,134.19,134.13,1.66436015]
[1767512814932,5.44478439,134.18,134.13,1.66436015]
[1767512815132,7.47877791,134.19,134.13,1.66436015]
[1767512815428,5.44530829,134.18,134.13,1.66436015]
[1767512815635,6.7099,134.19,134.13,1.66436015]
[1767512815823,5.44530829,134.18,134.13,1.66436015]
[1767512816117,7.47877791,134.19,134.13,1.66436015]
[1767512816318,5.44593305,134.18,134.13,1.66436015]
[1767512816527,6.7099,134.19,134.13,1.66436015]
[1767512816722,5.44586852,134.18,134.13,1.66436015]
[1767512816923,6.7099,134.19,134.13,1.66436015]
[1767512817129,5.44587052,134.18,134.13,1.66436015]
[1767512817330,6.7099,134.19,134.13,1.66436015]
[1767512817532,5.44643499,134.18,134.13,1.66436015]
[1767512817722,6.7099,134.19,134.13,1.66436015]
[1767512817922,5.44643499,134.18,134.13,1.66436015]
[1767512818125,6.7099,134.19,134.13,1.66436015]
[1767512818427,5.44710393,134.18,134.13,1.66436015]
[1767512818627,6.7099,134.19,134.13,1.66436015]
[1767512818825,5.44704798,134.18,134.13,1.66436015]
[1767512819025,6.7099,134.19,134.13,1.66436015]
[1767512819238,5.44704798,134.18,134.13,1.66436015]
[1767512819533,6.7099,134.19,134.13,1.66436015]
[1767512819723,5.44782972,134.18,134.13,1.66436015]
[1767512819923,6.7099,134.19,134.13,1.66436015]
[1767512820133,5.44783089,134.18,134.13,1.66436015]
[1767512820429,6.7099,134.19,134.13,1.66436015]
[1767512820630,5.4486841,134.18,134.13,1.66436015]
[1767512820932,6.7099,134.19,134.13,1.66436015]
[1767512821124,5.44865612,134.18,134.13,1.66436015]
[1767512821330,6.7099,134.19,134.13,1.66436015]
[1767512821529,5.44972427,134.18,134.13,1.66436015]
[1767512821725,6.7099,134.19,134.13,1.66436015]
[1767512821927,5.44972427,134.18,134.13,1.66436015]
[1767512822128,6.7099,134.19,134.13,1.66436015]
[1767512822432,5.4509029,134.18,134.13,1.66436015]
[1767512822632,6.7099,134.19,134.13,1.66436015]
[1767512822930,5.4509029,134.18,134.13,1.66436015]
[1767512823127,6.7099,134.19,134.13,1.66436015]
[1767512823325,5.45230846,134.18,134.13,1.66436015]
[1767512823527,6.7099,134.19,134.13,1.66436015]
[1767512823728,5.45230496,134.18,134.13,1.66436015]
[1767512824028,6.7099,134.19,134.13,1.66436015]
[1767512824227,5.45233296,134.18,134.13,1.66436015]
[1767512824437,5.45233296,134.17,134.13,1.66436015]
[1767512824638,6.7099,134.19,134.13,1.66436015]
[1767512824935,5.45345643,134.18,134.13,1.66436015]
[1767512825123,5.45345643,134.17,134.13,1.66436015]
[1767512825328,6.7099,134.19,134.13,1.66436015]
[1767512825525,5.45481,134.18,134.13,1.66436015]
[1767512825733,5.45481,134.17,134.13,1.66436015]
[1767512825939,6.7099,134.19,134.13,1.66436015]
[1767512826131,5.45480883,134.18,134.13,1.66436015]
[1767512826330,5.45480883,134.17,134.13,1.66436015]
[1767512826540,6.7099,134.19,134.13,1.66436015]
[1767512826839,5.45607491,134.18,134.13,1.66436015]
[1767512827136,5.45607491,134.17,134.13,1.66436015]
[1767512827436,6.7099,134.19,134.13,1.66436015]
[1767512827638,5.45763844,134.18,134.13,1.66436015]
[1767512827824,5.45763844,134.17,134.13,1.66436015]
[1767512828029,6.7099,134.19,134.13,1.66436015]
[1767512828229,5.45761041,134.18,134.13,1.66436015]
[1767512828430,5.45761041,134.17,134.13,1.66436015]
[1767512828633,6.7099,134.19,134.13,1.66436015]
[1767512828836,5.45824011,134.18,134.13,1.66436015]
[1767512829039,5.45824011,134.17,134.13,1.66436015]
[1767512829238,5.45906451,134.16,134.13,1.66436015]
[1767512829439,6.7099,134.19,134.13,1.66436015]
[1767512829739,5.45906651,134.18,134.13,1.66436015]
[1767512829939,5.45906651,134.17,134.13,1.66436015]
[1767512830130,5.45906651,134.16,134.13,1.66436015]
[1767512830331,6.7099,134.19,134.13,1.66436015]
[1767512830533,5.45950542,134.18,134.13,1.66436015]
[1767512830732,5.45950542,134.17,134.13,1.66436015]
[1767512831031,5.45950542,134.16,134.13,1.66436015]
[1767512831231,6.7099,134.19,134.13,1.66436015]
[1767512831433,5.46000415,134.18,134.13,1.66436015]
[1767512831630,5.46000415,134.17,134.13,1.66436015]
[1767512831829,5.46000415,134.16,134.13,1.66436015]
[1767512832038,6.7099,134.19,134.13,1.66436015]
[1767512832238,5.46000415,134.18,134.13,1.66436015]
[1767512832439,5.46000415,134.17,134.13,1.66436015]
[1767512832737,5.46000415,134.16,134.13,1.66436015]
[1767512832938,6.7099,134.19,134.13,1.66436015]
[1767512833143,5.46013827,134.18,134.13,1.66436015]
[1767512833338,5.46013827,134.17,134.13,1.66436015]
[1767512833539,5.46013827,134.16,134.13,1.66436015]
[1767512833740,6.7099,134.19,134.13,1.66436015]
[1767512833946,5.4691026,134.18,134.13,1.66436015]
[1767512834242,5.4691026,134.17,134.13,1.66436015]
[1767512834444,5.4691026,134.16,134.13,1.66436015]
[1767512834643,6.7099,134.19,134.13,1.66436015]
[1767512834844,5.46913782,134.18,134.13,1.66436015]
[1767512835044,5.46913782,134.17,134.13,1.66436015]
[1767512835244,5.46913782,134.16,134.13,1.66436015]
[1767512835540,6.7099,134.19,134.13,1.66436015]
[1767512835738,5.46917744,134.18,134.13,1.66436015]
[1767512836040,5.46917744,134.17,134.13,1.66436015]
[1767512836344,5.46917744,134.16,134.13,1.66436015]
[1767512836543,6.7099,134.19,134.13,1.66436015]
[1767512836746,5.46922162,134.18,134.13,1.66436015]
[1767512836940,5.46922162,134.17,134.13,1.66436015]
[1767512837136,5.46922162,134.16,134.13,1.66436015]
[1767512837336,6.7099,134.19,134.13,1.66436015]
[1767512837541,5.46928731,134.18,134.13,1.66436015]
[1767512837744,5.46928731,134.17,134.13,1.66436015]
[1767512837944,6.7099,134.19,134.13,1.66436015]
[1767512838143,5.46922569,134.18,134.13,1.66436015]
[1767512838344,5.46922569,134.17,134.13,1.66436015]
[1767512838637,6.7099,134.19,134.13,1.66436015]
[1767512838948,5.46924617,134.18,134.13,1.66436015]
[1767512839245,5.46924617,134.17,134.13,1.66436015]
[1767512839445,6.7099,134.19,134.13,1.66436015]
[1767512839648,5.4692354,134.18,134.13,1.66436015]
[1767512839945,5.4692354,134.17,134.13,1.66436015]
[1767512840149,6.7099,134.19,134.13,1.66436015]
[1767512840351,5.46894807,134.18,134.13,1.66436015]
[1767512840550,5.46894807,134.17,134.13,1.66436015]
[1767512840747,6.7099,134.19,134.13,1.66436015]
[1767512840943,5.46894807,134.18,134.13,1.66436015]
[1767512841248,5.46894807,134.17,134.13,1.66436015]
[1767512841440,6.7104,134.18,134.13,1.66436015]
[1767512841644,5.46874034,134.17,134.13,1.66436015]
[1767512841842,6.7104,134.18,134.13,1.66436015]
[1767512842048,5.46874034,134.17,134.13,1.66436015]
[1767512842252,6.7104,134.18,134.13,1.66436015]
[1767512842550,5.46855054,134.17,134.13,1.66436015]
[1767512842752,6.7104,134.18,134.13,1.66436015]
[1767512842956,5.46855054,134.17,134.13,1.66436015]
[1767512843250,6.7104,134.18,134.13,1.66436015]
[1767512843435,5.46838185,134.17,134.13,1.66436015]
[1767512843639,6.7104,134.18,134.13,1.66436015]
[1767512843849,5.46838185,134.17,134.13,1.66436015]
[1767512844055,6.7104,134.18,134.13,1.66436015]
[1767512844246,5.46821788,134.17,134.13,1.66436015]
[1767512844444,6.7104,134.18,134.13,1.66436015]
[1767512844644,5.46821788,134.17,134.13,1.66436015]
[1767512844845,6.7104,134.18,134.13,1.66436015]
[1767512845050,5.46821788,134.17,134.13,1.66436015]
[1767512845255,6.7104,134.18,134.13,1.66436015]
[1767512845550,5.46824234,134.17,134.13,1.66436015]
[1767512845741,6.7104,134.18,134.13,1.66436015]
[1767512845941,5.46824234,134.17,134.13,1.66436015]
[1767512846138,6.7104,134.18,134.13,1.66436015]
[1767512846339,5.46830106,134.17,134.13,1.66436015]
[1767512846550,6.7104,134.18,134.13,1.66436015]
[1767512846746,5.46830106,134.17,134.13,1.66436015]
[1767512846951,6.7104,134.18,134.13,1.66436015]
[1767512847154,5.46830106,134.17,134.13,1.66436015]
[1767512847346,6.7104,134.18,134.13,1.66436015]
[1767512847547,5.46839559,134.17,134.13,1.66436015]
[1767512847750,6.7104,134.18,134.13,1.66436015]
[1767512847949,5.46839559,134.17,134.13,1.66436015]
[1767512848249,6.7104,134.18,134.13,1.66436015]
[1767512848553,5.46830487,134.17,134.13,1.66436015]
[1767512848752,6.7104,134.18,134.13,1.66436015]
[1767512848953,5.46830487,134.17,134.13,1.66436015]
[1767512849253,6.7104,134.18,134.13,1.66436015]
[1767512849552,5.46823176,134.17,134.13,1.66436015]
[1767512849751,6.7104,134.18,134.13,1.66436015]
[1767512849952,5.46823176,134.17,134.13,1.66436015]
[1767512850154,94.8297,134.2,134.13,1.66436015]
[1767512850345,5.4681423,134.19,134.13,1.66436015]
[1767512850546,5.4681423,134.18,134.13,1.66436015]
[1767512850846,5.4681423,134.17,134.13,1.66436015]
[1767512851153,6.7101,134.19,134.13,1.66436015]
[1767512851349,5.46812376,134.18,134.13,0.04842535]
[1767512851550,88.88887791,134.2,134.13,0.04842535]
[1767512851551,5.46812376,134.17,134.13,0.04842535]
[1767512851755,5.46812376,134.16,134.13,0.04842535]
[1767512851949,88.88887791,134.2,134.13,0.04842535]
[1767512852150,5.46825251,134.19,134.13,0.04842535]
[1767512852350,5.46825251,134.18,134.13,0.04842535]
[1767512852553,5.46825251,134.17,134.13,0.04842535]
[1767512852858,5.46825251,134.16,134.13,0.04842535]
[1767512853055,6.7106,134.18,134.13,0.04842535]
[1767512853256,5.46826304,134.17,134.13,0.04842535]
[1767512853555,5.46826304,134.16,134.13,0.04842535]
[1767512853745,6.7106,134.18,134.13,0.04842535]
[1767512853950,5.46825647,134.17,134.13,0.04842535]
[1767512854151,5.46825647,134.16,134.13,0.04842535]
[1767512854350,6.7106,134.18,134.13,0.04842535]
[1767512854551,5.46825007,134.17,134.13,0.04842535]
[1767512854754,5.46825007,134.16,134.13,0.04842535]
[1767512854955,6.7106,134.18,134.13,0.04842535]
[1767512855154,5.46825007,134.17,134.13,0.04842535]
[1767512855355,5.46825007,134.16,134.13,0.04842535]
[1767512855544,5.46825007,134.15,134.13,0.04842535]
[1767512855744,6.7109,134.17,134.13,0.04842535]
[1767512855944,5.46893765,134.16,134.13,0.04842535]
[1767512856146,5.46893765,134.15,134.13,0.04842535]
[1767512856361,6.7109,134.17,134.13,0.04842535]
[1767512856658,5.46743382,134.16,134.13,0.04842535]
[1767512856860,5.46743382,134.15,134.13,0.04842535]
[1767512857060,6.7109,134.17,134.13,0.04842535]
[1767512857262,5.46634767,134.16,134.13,0.04842535]
[1767512857458,5.46634767,134.15,134.13,0.04842535]
[1767512857760,6.7109,134.17,134.13,0.04842535]
[1767512857951,5.46600708,134.16,134.13,0.04842535]
[1767512858153,5.46600708,134.15,134.13,0.04842535]
[1767512858353,6.7109,134.17,134.13,0.04842535]
[1767512858662,5.46543213,134.16,134.13,0.04842535]
[1767512858856,5.46543213,134.15,134.13,0.04842535]
[1767512859064,6.7109,134.17,134.13,0.04842535]
[1767512859361,5.46489155,134.16,134.13,0.04842535]
[1767512859564,5.46489155,134.15,134.13,0.04842535]
[1767512859863,6.7114,134.16,134.13,0.04842535]
[1767512860064,5.46475256,134.15,134.13,0.04842535]
[1767512860262,6.7114,134.16,134.13,0.04842535]
[1767512860560,5.46428107,134.15,134.13,0.04842535]
[1767512860762,6.7114,134.16,134.13,0.04842535]
[1767512860962,5.46428107,134.15,134.13,0.04842535]
[1767512861170,6.7114,134.16,134.13,0.04842535]
[1767512864667,5.46611758,134.15,134.1,1.41379024]
[1767512864865,6.7114,134.16,134.1,1.41379024]
[1767512865067,5.46611758,134.15,134.1,1.41379024]
[1767512865262,6.7114,134.16,134.1,1.41379024]
[1767512865564,5.46569794,134.15,134.1,1.41379024]
[1767512865766,0.04746201,134.14,134.12,0.05309102]
[1767512890591,0.04746201,134.14,134.1,1.41379024]
[1767512891689,0.04746201,134.14,134.11,0.05168597]
[1767512895700,0.04746201,134.14,134.08,94.8153]
[1767512895701,5.4698738,134.13,134.08,1.1501555]
[1767512895899,0.04746201,134.14,134.08,1.1501555]
[1767512896100,5.46987497,134.13,134.08,1.1501555]
[1767512896286,0.04746201,134.14,134.08,1.1501555]
[1767512896493,5.47014166,134.13,134.08,1.1501555]
[1767512896692,0.04746201,134.14,134.09,0.05148811]
[1767512896891,12.1830413,134.13,134.09,0.05148811]
[1767512897087,6.7129,134.13,134.09,0.05148811]
[1767512912912,5.46601968,134.12,134.04,8.80609258]
[1767512913106,5.46601968,134.11,134.04,0.88745281]
[1767512913297,6.7141,134.11,134.04,0.88745281]
[1767512913704,5.46470981,134.1,134.04,0.88745281]
[1767512914013,0.05642089,134.08,134.06,0.05665997]
[1767512916204,0.05642089,134.08,134.04,0.88745281]
[1767512916508,0.05642089,134.08,134.02,6.7179]
[1767512916701,0.05642089,134.08,134.02,7.60535281]
[1767512916907,0.05642089,134.08,134.03,0.88745281]
[1767512917309,0.05642089,134.08,134.04,0.05568027]
[1767512925123,6.77192089,134.08,134.04,0.05568027]
[1767512925518,6.716,134.07,134.04,0.05568027]
[1767512925723,6.716,134.07,134.01,0.88745281]
[1767512926729,6.716,134.07,134.03,0.05521886]
[1767512940348,7.48611308,134.07,134.0,0.88745281]
[1767512941439,0.04910043,134.05,134.02,0.05478144]
[1767512941947,6.7153,134.09,134.02,0.77603666]
[1767512942840,0.04945631,134.07,134.02,0.77603666]
[1767512947644,0.04945631,134.07,134.03,0.72125522]
[1767512947948,88.93011308,134.12,134.05,0.72125522]
[1767512948150,5.46544915,134.11,134.05,0.72125522]
[1767512948350,88.93011308,134.12,134.05,0.72125522]
[1767512948548,5.46671014,134.11,134.05,0.72125522]
[1767512948747,95.64381308,134.12,134.05,0.72125522]
[1767512949048,0.05266781,134.09,134.07,0.05490237]
[1767512953250,0.05266781,134.09,134.05,0.72125522]
[1767512954254,0.05266781,134.09,134.06,0.05042057]
[1767512961356,0.05266781,134.09,134.06,0.77167579]
[1767512963154,0.05266781,134.09,134.04,0.72125522]
[1767512964259,0.05266781,134.09,134.05,0.05538306]
[1767512964562,6.7154,134.08,134.05,0.05538306]
[1767512970968,0.05266781,134.09,134.05,0.6648015]
[1767512980393,6.714,134.11,134.05,0.6648015]
[1767512981992,0.05178462,134.09,134.05,0.6648015]
[1767512988900,0.05178462,134.09,134.06,0.55016617]
[1767512994407,6.7134,134.12,134.06,0.55016617]
[1767512994606,5.48677352,134.11,134.06,0.55016617]
[1767512994804,5.48677352,134.1,134.06,0.55016617]
[1767512995007,6.7134,134.12,134.06,0.55016617]
[1767512995201,5.48677352,134.11,134.06,0.55016617]
[1767512995400,6.7134,134.12,134.06,0.55016617]
[1767512995601,5.4866299,134.11,134.06,0.55016617]
[1767512995801,6.7134,134.12,134.06,0.55016617]
[1767512996002,5.4866299,134.11,134.06,0.55016617]
[1767512996203,6.7134,134.12,134.06,0.55016617]
[1767512996404,5.48650016,134.11,134.06,0.55016617]
[1767512996604,6.7134,134.12,134.06,0.55016617]
[1767512996806,5.48650016,134.11,134.06,0.55016617]
[1767512997007,6.7134,134.12,134.06,0.55016617]
[1767512997209,5.48650016,134.11,134.06,0.55016617]
[1767512997510,6.7134,134.12,134.06,0.55016617]
[1767512997709,5.48638347,134.11,134.06,0.55016617]
[1767512997910,6.7134,134.12,134.06,0.55016617]
[1767512998210,5.48638347,134.11,134.06,0.55016617]
[1767512998412,6.7134,134.12,134.06,0.55016617]
[1767512998708,5.48629338,134.11,134.06,0.55016617]
[1767512998904,6.7134,134.12,134.06,0.55016617]
[1767512999109,5.4862922,134.11,134.06,0.55016617]
[1767512999310,6.714,134.11,134.05,0.05538306]
[1767512999504,5.48632648,134.1,134.05,0.05538306]
[1767512999705,6.714,134.11,134.05,0.05538306]
[1767512999909,0.05681066,134.09,134.05,0.05538306]
[1767513004823,0.05681066,134.09,134.05,0.57580317]
[1767513014119,13.68069217,134.18,134.07,0.52042011]
[1767513014322,5.48321881,134.15,134.07,0.52042011]
[1767513014517,5.48321881,134.14,134.07,0.52042011]
[1767513014723,5.48321881,134.13,134.07,0.52042011]
[1767513014925,13.68069217,134.18,134.07,0.52042011]
[1767513015229,0.05441048,134.14,134.11,0.05346227]
[1767513015423,5.48201246,134.13,134.11,0.05346227]
[1767513015734,0.05441048,134.14,134.08,0.52042011]
[1767513015925,5.48137752,134.13,134.08,0.52042011]
[1767513016127,0.05441048,134.14,134.08,0.52042011]
[1767513016428,5.48027798,134.13,134.08,0.52042011]
[1767513016629,0.05441048,134.14,134.08,0.52042011]
[1767513016820,5.48027479,134.13,134.09,0.05232647]
[1767513017124,0.05441048,134.14,134.09,0.05232647]
[1767513017323,5.47938815,134.13,134.09,0.05232647]
[1767513017525,0.05441048,134.14,134.09,0.05232647]
[1767513017832,5.47938815,134.13,134.09,0.05232647]
[1767513018022,0.05441048,134.14,134.09,0.05232647]
[1767513018224,5.47938815,134.13,134.09,0.05232647]
[1767513018424,0.05441048,134.14,134.09,0.05232647]
[1767513018732,5.47848653,134.13,134.09,0.05232647]
[1767513018932,0.05441048,134.14,134.09,0.05232647]
[1767513019235,5.47848653,134.13,134.09,0.05232647]
[1767513019433,6.76691048,134.14,134.09,0.05232647]
[1767513019633,5.47770419,134.13,134.09,0.05232647]
[1767513019833,6.76691048,134.14,134.09,0.05232647]
[1767513020034,5.47770855,134.13,134.09,0.05232647]
[1767513020234,6.76691048,134.14,134.09,0.05232647]
[1767513020433,5.47706824,134.13,134.09,0.05232647]
[1767513020731,6.76691048,134.14,134.09,0.05232647]
[1767513021034,5.47706824,134.13,134.09,0.05232647]
[1767513021335,6.76691048,134.14,134.09,0.05232647]
[1767513021535,5.47654944,134.13,134.09,0.05232647]
[1767513021726,6.76691048,134.14,134.09,0.05232647]
[1767513022032,5.47654944,134.13,134.09,0.05232647]
[1767513022233,6.76691048,134.14,134.09,0.05232647]
[1767513023333,5.47591356,134.13,134.09,0.05232647]
[1767513023634,6.76691048,134.14,134.09,0.05232647]
[1767513023835,5.47591356,134.13,134.09,0.05232647]
[1767513024037,6.76691048,134.14,134.09,0.05232647]
[1767513024238,5.47591356,134.13,134.09,0.05232647]
[1767513024438,6.76691048,134.14,134.09,0.05232647]
[1767513024638,5.47554735,134.13,134.09,0.05232647]
[1767513024839,6.76691048,134.14,134.09,0.05232647]
[1767513025038,5.47554735,134.13,134.09,0.05232647]
[1767513025240,6.76691048,134.14,134.09,0.05232647]
[1767513025534,5.47521529,134.13,134.09,0.57274658]
[1767513025731,6.76691048,134.14,134.09,0.57274658]
[1767513026140,6.76691048,134.14,134.09,0.05232647]
[1767513026531,5.47472634,134.13,134.09,0.05232647]
[1767513026830,6.76691048,134.14,134.09,0.05232647]
[1767513027125,5.47472634,134.13,134.09,0.05232647]
[1767513027331,6.76691048,134.14,134.09,0.05232647]
[1767513027624,5.47447265,134.13,134.09,0.05232647]
[1767513027831,6.76691048,134.14,134.09,0.05232647]
[1767513028040,5.47447265,134.13,134.09,0.05232647]
[1767513028242,6.76691048,134.14,134.09,0.05232647]
[1767513028441,5.47424907,134.13,134.09,0.05232647]
[1767513028642,6.76691048,134.14,134.09,0.05232647]
[1767513028943,5.47424907,134.13,134.09,0.05232647]
[1767513029240,6.76691048,134.14,134.09,0.05232647]
[1767513029439,5.47405179,134.13,134.09,0.05232647]
[1767513029640,6.713,134.13,134.09,0.05232647]
[1767513037941,6.7135,134.12,134.06,0.43541752]
[1767513039149,0.05585494,134.1,134.08,0.05666208]
[1767513053554,0.05585494,134.1,134.02,25.30353428]
[1767513053856,0.05585494,134.1,134.03,0.43541752]
[1767513054559,0.05585494,134.1,134.05,0.04900641]
[1767513054755,6.77025494,134.1,134.05,0.04900641]
[1767513059164,6.77025494,134.1,134.05,0.48442393]
[1767513060764,0.05585494,134.1,134.06,0.40272359]
[1767513061067,0.76952345,134.16,134.08,0.40272359]
[1767513061365,5.4831485,134.15,134.08,0.40272359]
[1767513061566,5.4831485,134.14,134.08,0.40272359]
[1767513061764,5.4831485,134.13,134.08,0.40272359]
[1767513061962,0.05683469,134.12,134.09,0.05144878]